Cogmind - Beta 15 @@@ ROGUE MODE // 2025.07.17 @ 23:09:01 Player: Selene Result: Destroyed by H-88 Terminator with KE Penetrator Performance ------------- Evolutions (8) 4000 Regions Visited (19) 3800 Robots Destroyed (183) 915 Value Destroyed (6226) 6226 Prototype IDs (69) 1380 Alien Tech Used (2) 400 Bonus (4046) 4046 TOTAL SCORE: 20767 Bonus ------- High Alert Combat Kills 680 Follower Combat Kills 730 Registered with UFD 300 Met Optimus in HQ 500 Hacked Protovariant 500 Scanned by Researcher 500 Met Optimus at Protoforge 1000 Friendly Fire -164 Cogmind --------- Core Integrity 0/1450 Matter 249/300 Energy 100/100 System Corruption 11% Temperature Cool (0) Movement Core (300) Ox5 Location -2/Protoforge Parts ------- > --- POWER (2) -------- (None) > --- PROPULSION (7) --- (None) > --- UTILITY (12) ----- Medium Storage Unit Spectral Analyzer Advanced Signal Interpreter Partition Strike Chip Advanced Targeting Computer Experimental Core Analyzer Improved Armor Integrity Analyzer Centrium Light Armor Plating Improved Dynamic Insulation System > --- WEAPON (2) ------- (None) > --- INVENTORY (10) --- Experimental Heat Sink Long-range IFF Parser Improved Phase Shifter Overtuned Quantum Rifle Overtuned Coil Gun Helical Railgun Helical Railgun Compact Linear Accelerator Experimental Terror Saw Peak State ------------ > --- POWER ------------ Improved Quantum Reactor Improved Quantum Reactor > --- PROPULSION ------- Q-thruster Impulse Thruster Array Impulse Thruster Array Impulse Thruster Array > --- UTILITY ---------- Experimental Heat Sink Medium Storage Unit Machine Analyzer Spectral Analyzer Advanced Signal Interpreter Long-range IFF Parser Experimental Melee Analysis Suite Experimental Melee Analysis Suite Centrium Medium Armor Plating Graphene Brace Advanced Hacking Suite Experimental System Shield > --- WEAPON ----------- Hypervelocity Multirail Experimental Terror Saw > --- INVENTORY -------- Light Particle Reactor Advanced Matter Compressor Advanced Weapon Cycler Improved Phase Shifter Improved Core Shielding Layered Medium Armor Plating Concept Concussive Dispersal Blaster Experimental Terror Saw [Rating: 184] Favorites ----------- Power Light Nuclear Core Engine Cooled Ion Engine Power Core Light Nuclear Core Reactor Heavy Antimatter Reactor Propulsion Improved VTOL Module Treads Armored Treads Wheel Armored Wheel Hover Unit Antigrav Array Flight Unit Improved VTOL Module Utility Huge Storage Unit Device Improved Sensor Array Storage Huge Storage Unit Processor Advanced Signal Interpreter Hackware Hacking Suite Protection Hardened Medium Armor Plating Artifact Phase Redirector Weapon Improved Medium Laser Energy Gun Improved Medium Laser Energy Cannon Enhanced Nova Cannon Ballistic Gun Assault Rifle Ballistic Cannon Improved Light Cannon Launcher Mini Grenade Launcher Special Weapon Stasis Beam Slashing Weapon Katana Piercing Weapon Enhanced Force Lance Build | -11 -10 -10 -9 -8 -8 -8 -8 -6 -5 -5 -5 -4 -4 -4 -3 -3 -2 -2 -2 ------- Run | Yrd Mat Min Mat Mat Sto Rec Scr Fac Fac Was Fac Fac Was Fac Res Tes Res Qua Frg Slots Evolved 16 | . . . 2 2 . . . 4 2 . . 2 . . 2 . 2 . . Power 1 | . . . . . . . . . . . . 1 . . . . . . . Propulsion 5 | . . . 1 1 . . . 1 1 . . . . . . . 1 . . Utility 10 | . . . 1 1 . . . 3 1 . . 1 . . 2 . 1 . . Weapon . | . . . . . . . . . . . . . . . . . . . . Parts Attached 290 | 7 13 4 33 19 18 6 14 15 9 4 11 11 . 7 9 19 31 6 54 Power 32 | 1 2 . 6 1 2 . 1 . 1 . 2 1 . 1 . 2 3 . 9 Engine 7 | 1 1 . 2 . 1 . . . . . . . . . . 1 . . 1 Core 11 | . 1 . 4 1 1 . 1 . 1 . 2 . . . . . . . . Reactor 14 | . . . . . . . . . . . . 1 . 1 . 1 3 . 8 Propulsion 75 | 2 2 1 11 7 5 3 6 2 3 . 3 1 . . 4 5 2 2 16 Treads 18 | . . . . 2 3 2 1 . . . . . . . . . 1 . 9 Leg . | . . . . . . . . . . . . . . . . . . . . Wheel 28 | 2 2 1 10 5 2 1 2 . . . . . . . . . . . 3 Hover 2 | . . . . . . . . . . . . . . . 2 . . . . Flight 27 | . . . 1 . . . 3 2 3 . 3 1 . . 2 5 1 2 4 Utility 119 | 2 5 2 7 4 5 1 5 9 4 3 5 7 . 6 2 7 22 2 21 Device 51 | 1 . 1 3 2 3 . 2 2 2 2 3 3 . 5 2 5 9 1 5 Storage 11 | 1 3 . 1 . . . 2 . . . . . . . . 1 1 . 2 Processor 21 | . . . . . . . . 4 1 . . 2 . . . 1 5 . 8 Hackware 10 | . . . . 1 . . 1 2 . . . 2 . . . . 4 . . Protection 25 | . 2 1 3 1 2 1 . 1 1 1 2 . . 1 . . 3 . 6 Artifact 1 | . . . . . . . . . . . . . . . . . . 1 . Weapon 64 | 2 4 1 9 7 6 2 2 4 1 1 1 2 . . 3 5 4 2 8 Energy Gun 20 | 1 2 . 5 4 4 1 . . . . . . . . 2 1 . . . Energy Cannon 6 | . . . 1 . . . . 1 . 1 . 1 . . . . 1 . 1 Ballistic Gun 12 | 1 . 1 2 . . . 1 1 . . . . . . . 1 1 . 4 Ballistic Cannon 2 | . . . . . 1 . . . . . . . . . . . . . 1 Launcher 12 | . 2 . . 3 1 . 1 . . . . 1 . . . 1 1 1 1 Special Weapon 1 | . . . . . . . . . . . . . . . . 1 . . . Impact Weapon . | . . . . . . . . . . . . . . . . . . . . Slashing Weapon 9 | . . . 1 . . 1 . 2 1 . 1 . . . 1 . . 1 1 Piercing Weapon 2 | . . . . . . . . . . . . . . . . 1 1 . . Special Melee Weapon . | . . . . . . . . . . . . . . . . . . . . Unidentified Prototypes 46 | . . . 2 1 2 . . 2 . 1 3 3 . 2 1 9 8 2 10 Corrupted Parts 2 | . . . . . . . 1 . . . . . . . . . . . 1 System Corruption 4 | . . . . . . . 3 . . . . . . . . . . . 1 Parts Lost 109 | . 2 2 20 8 8 . . . 3 . 5 . . 11 11 2 1 . 36 Power 20 | . 1 . 5 . 1 . . . . . 1 . . 1 1 1 . . 9 Propulsion 40 | . . 1 8 4 5 . . . . . . . . 5 2 1 . . 14 Utility 34 | . 1 1 2 2 2 . . . 3 . 4 . . 3 6 . 1 . 9 Weapon 15 | . . . 5 2 . . . . . . . . . 2 2 . . . 4 Highest Loss Streak 15 | . 1 2 5 7 4 . . . 2 . 5 . . 5 9 2 1 . 15 To Critical Strikes 1 | . . . . . . . . . . . . . . . . . . . 1 Average Backups 16 | 2 14 18 24 24 24 25 21 10 9 9 9 8 9 8 3 4 7 9 6 Power 1 | . . . 1 2 1 2 1 1 1 1 . . 1 1 . . 1 1 . Propulsion 3 | 1 4 3 5 5 5 5 4 1 1 2 2 2 2 2 . . . 2 . Utility 7 | . 6 8 7 8 9 11 11 7 6 5 5 4 5 4 1 . 2 3 3 Weapon 4 | . 3 6 8 8 8 6 3 . . . . 1 1 1 1 2 2 2 2 Tool/Special . | . . . . . . . . . . . . . . . . . . . . Unused Backups 97 | . 11 1 16 8 3 4 4 11 3 3 4 3 . 2 . 6 8 . 10 Power 8 | . . . . 1 1 . . 3 . 1 . . . . . . 1 . 1 Propulsion 22 | . 8 1 5 . . . . . 2 . 2 . . . . . 3 . 1 Utility 41 | . 3 . 4 2 . 2 3 7 1 . 2 2 . 2 . 4 4 . 5 Weapon 25 | . . . 7 4 2 2 1 1 . 2 . 1 . . . 2 . . 3 Tool/Special 1 | . . . . 1 . . . . . . . . . . . . . . . Average Slot Usage (%) 92 | . 99 100 98 85 96 96 93 99 97 94 93 88 89 82 59 75 93 91 81 Engine 2 | . 10 . 1 . 1 9 6 . . . . . . . . 1 . . . Core 4 | . 3 14 8 9 7 . 2 6 5 5 5 3 . . . 3 4 1 . Reactor 1 | . . . . . . . . . . . . 1 5 4 2 . 4 4 4 Treads 8 | . . . . . 26 31 26 . . . . . . . . . . . 4 Wheel 9 | . 28 28 32 24 6 . 2 . . . . . . . . . . . 4 Flight 10 | . . . . . . . 3 32 32 29 28 26 26 21 9 20 29 26 10 Device 10 | . 5 11 12 6 8 12 7 7 7 6 8 13 10 10 17 19 17 13 12 Storage 7 | . 14 14 11 9 9 9 8 6 5 5 5 5 5 4 . 3 3 4 4 Processor 5 | . . . . . . . . 12 11 11 11 14 15 15 12 11 14 17 18 Hackware 7 | . . . . 9 9 9 10 13 11 11 10 11 15 13 4 4 10 13 8 Protection 6 | . 8 2 9 9 9 5 8 4 8 9 6 . . . 2 . 3 4 4 Energy Gun 6 | . 13 4 14 12 16 12 6 . . . . . . . 2 . . . . Ballistic Gun 2 | . 14 18 5 . . . . . . . . . . . . . . . 3 Ballistic Cannon 1 | . . . . . 1 5 6 . . . . . . . . . . . . Launcher 1 | . . 5 . . . . 1 5 5 4 4 5 5 4 . . . 2 . Slashing Weapon 1 | . . . 1 3 . . 2 6 5 5 5 5 5 4 . 2 . . . Peak Build Rating 184 | 7 14 14 21 28 33 35 39 62 73 77 81 103 96 99 99 143 176 173 184 Average Rating 57 | 5 10 13 18 22 30 32 33 54 69 71 75 94 96 92 82 112 157 154 147 On Entrance 60 | . 7 13 13 21 28 31 35 30 59 71 70 71 96 96 57 71 134 160 153 Naked Turns . | . . . . . . . . . . . . . . . . . . . . Heaviest Build 104 | 12 93 53 95 99 102 104 104 25 30 29 39 35 34 36 31 33 51 53 77 Greatest Support 131 | 20 24 24 40 58 80 82 82 26 33 33 39 36 36 36 42 47 54 56 131 Greatest Overweight (x) 30 | . 3 2 4 30 3 9 29 . . . 1 . . 1 1 . 16 . 3 Average Overweight (x) . | . 1 2 2 2 1 1 . . . . . . . . . . . . . Largest Inventory Capacity 25 | 8 25 20 25 25 25 25 25 25 10 10 10 10 10 10 5 5 10 10 10 Average Capacity 17 | 7 15 20 24 25 25 25 22 10 10 10 10 10 10 9 5 5 8 10 10 Most Carried 25 | 6 20 20 25 25 25 25 25 24 10 10 10 10 10 10 5 5 10 10 10 Average Carried 16 | 2 14 19 24 24 24 24 21 10 9 9 9 9 10 9 3 4 8 9 8 Final Capacity 25 | 8 20 20 25 25 25 25 25 10 10 10 10 10 10 5 5 5 10 10 10 Final Carried 25 | 6 20 20 25 25 25 25 25 10 10 10 8 10 10 4 5 5 10 10 9 Class Distribution -------------------- 40% | Mutant 21% | Scavenger-Mutant 19% | Hacker-Sprinter 8% | Hacker-Scout 4% | Sprinter Dominant Class ---------------- Mutant | -10/Materials Mutant | -10/Mines Mutant | -9/Materials Scavenger-Mutant | -8/Materials Scavenger-Mutant | -8/Storage Mutant | -8/Recycling Mutant | -8/Scraptown Hacker-Sprinter | -6/Factory Hacker-Sprinter | -5/Factory Hacker-Sprinter | -5/Waste Hacker-Sprinter | -5/Factory Hacker-Scout | -4/Factory Hacker-Scout | -4/Waste Hacker-Sprinter | -4/Factory Mutant | -3/Research Sprinter | -3/Testing Hacker-Scout | -2/Research Hacker-Scout | -2/Quarantine Scavenger-Mutant | -2/Protoforge Resources | -11 -10 -10 -9 -8 -8 -8 -8 -6 -5 -5 -5 -4 -4 -4 -3 -3 -2 -2 -2 ----------- Run | Yrd Mat Min Mat Mat Sto Rec Scr Fac Fac Was Fac Fac Was Fac Res Tes Res Qua Frg Matter Collected 7014 | 291 343 169 666 385 357 428 210 340 150 155 244 110 . 287 92 488 431 113 1755 Remotely . | . . . . . . . . . . . . . . . . . . . . Salvage Created 7160 | 122 578 75 1542 1182 719 . . 209 119 . 312 16 . 117 185 190 283 113 1398 Parts 371 | 7 25 12 74 44 28 . . 11 8 . 17 1 . 10 5 13 21 7 88 Haulers Intercepted 9 | . 1 . 2 1 . . . 2 1 . 2 . . . . . . . . Recyclers Shooed 12 | . . . 4 5 2 . . . . . 1 . . . . . . . . Parts Field Recycled . | . . . . . . . . . . . . . . . . . . . . Retrieved Matter . | . . . . . . . . . . . . . . . . . . . . Parts Self-Destructed . | . . . . . . . . . . . . . . . . . . . . Prevented . | . . . . . . . . . . . . . . . . . . . . Kills | -11 -10 -10 -9 -8 -8 -8 -8 -6 -5 -5 -5 -4 -4 -4 -3 -3 -2 -2 -2 ------- Run | Yrd Mat Min Mat Mat Sto Rec Scr Fac Fac Was Fac Fac Was Fac Res Tes Res Qua Frg Combat Hostiles Destroyed 112 | . 10 6 29 14 16 . . . 2 . 7 . . . 2 3 7 . 16 Melee 11 | . . . 3 3 . . . . . . . . . . . 3 2 . . Guns 62 | . 10 3 21 5 10 . . . . . . . . . . . . . 13 Cannons 4 | . . . . . 1 . . . . . . . . . . . . . 3 AOE 31 | . . 3 3 5 4 . . . 2 . 7 . . . 2 . 5 . . Classes Destroyed 20 | 2 5 1 4 1 . . . . . . 1 . . . . . 2 . 4 Worker 21 | . . . 4 1 2 . . 2 . . 3 1 . 2 1 1 1 3 . Builder 5 | . 1 . 2 1 . . . . . . 1 . . . . . . . . Tunneler 2 | 2 . . . . . . . . . . . . . . . . . . . Hauler 9 | . 1 . 2 1 . . . 2 1 . 2 . . . . . . . . Recycler 10 | 1 1 . 1 5 1 . . . . . . . . . 1 . . . . Mechanic 2 | . . . . . . . . . . . . . . . . . 1 . 1 Operator 7 | . . . 2 1 . . . . 1 . . . . 1 . . 1 1 . Watcher 15 | . 1 . 4 2 . . . . . . . . . 1 . 1 2 1 3 Swarmer 28 | . . 6 3 . 4 . . . 2 . 5 . . . . 2 5 . 1 Cutter 4 | . . . . . . . . . . . 2 . . . 2 . . . . Grunt 44 | . 9 . 16 9 7 . . . . . . . . . . 1 . . 2 Duelist 1 | . . . 1 . . . . . . . . . . . . . . . . Protector 1 | . . . . . . . . . . . . . . . . . . . 1 Sentry 18 | . . . 9 4 5 . . . . . . . . . . . . . . Hunter 1 | . . . . 1 . . . . . . . . . . . . . . . Programmer 7 | . . . . . . . . . . . . . . . . . 2 . 5 Decapitator 1 | . . . . . . . . . . . . . . . . . . . 1 Striker 3 | . . . . . . . . . . . . . . . . . . . 3 Executioner 2 | . . . . . . . . . . . . . . . . . . . 2 Subdweller 1 | . 1 . . . . . . . . . . . . . . . . . . Scraphulk 1 | . . . . . . . . . . . . . . . . . . . 1 Best Kill Streak 8 | 3 4 3 5 8 4 . . 1 2 . 7 1 . 1 2 2 6 3 5 Combat Bots Only 5 | . 3 3 3 5 4 . . . 2 . 5 . . . 2 2 5 . 5 Max Kills in Single Turn 5 | 1 1 2 2 2 2 . . 1 2 . 3 1 . 1 2 1 5 1 2 Gunslinging 1 | . . . 1 . . . . . . . . . . . . . . . 1 Exploded 4 | . . 2 2 2 2 . . . 2 . 2 . . . 2 . 4 . . Melee 1 | . . . 1 1 . . . . . . . . . . . 1 1 . . Uniques/NPCs Destroyed . | . . . . . . . . . . . . . . . . . . . . Combat | -11 -10 -10 -9 -8 -8 -8 -8 -6 -5 -5 -5 -4 -4 -4 -3 -3 -2 -2 -2 -------- Run | Yrd Mat Min Mat Mat Sto Rec Scr Fac Fac Was Fac Fac Was Fac Res Tes Res Qua Frg Hostile Shots Fired 1395 | . 56 25 194 82 125 . . 5 56 . 72 16 . 138 51 73 35 2 465 Missed 523 | . 15 4 45 28 24 . . 2 28 . 35 11 . 72 19 44 20 2 174 Hits 872 | . 41 21 149 54 101 . . 3 28 . 37 5 . 66 32 29 15 . 291 Melee 40 | . . . 1 . 1 . . . . . 6 . . . 14 . . . 18 Projectile 832 | . 41 21 148 54 100 . . 3 28 . 31 5 . 66 18 29 15 . 273 AOE 7 | . . . . . . . . . . . 2 . . 1 2 . . . 2 Critical Strikes 46 | . 1 . 3 1 5 . . . 2 . 1 . . 1 7 1 1 . 23 Actively Blocked 12 | . . . . . . . . . . . . . . 1 7 1 1 . 2 Part Disruptions 2 | . . . . . . . . . . . 1 . . . . . . . 1 Damage Taken 18709 | . 553 167 1919 933 1498 . . 44 557 . 1048 64 . 1303 1040 452 336 80 8715 Core 3852 | . 79 23 331 199 251 . . 15 135 . 248 . . 611 305 196 24 . 1435 Absorbed by Shields 122 | . . . . . . . . . . . . . . 122 . . . . . Redirected to Shielding 393 | . . . 53 5 17 . . . . . 111 . . 95 14 . . . 98 Ignored by Resistances 93 | . . . . . . . . . . . . . . . . 93 . . . Regen/Repaired (Parts) 557 | . 66 . . . 187 . . 30 15 107 49 . . . . . 33 . 70 Core Remaining (%) 57 | 100 . 59 17 . . . 18 98 . . 61 . . 46 . 61 . . . Volleys Fired 500 | 7 54 16 134 71 66 2 . 5 3 . 22 . . 4 6 . 2 1 107 Largest 2 | 2 2 2 2 2 2 1 . 1 1 . 1 . . 1 1 . 1 1 2 Hottest 180 | 60 85 40 124 133 121 33 . 30 30 . 30 . . 30 94 . 20 52 180 Shots Fired 832 | 14 106 30 261 99 128 2 . 5 3 . 23 . . 4 6 . 2 1 148 Gun 703 | 14 105 28 251 79 116 . . . . . . . . . 4 . . . 106 Cannon 70 | . . . 6 10 10 2 . . . . . . . . . . . . 42 Launcher 59 | . 1 2 4 10 2 . . 5 3 . 23 . . 4 2 . 2 1 . Special . | . . . . . . . . . . . . . . . . . . . . Kinetic 282 | 7 53 28 69 . 10 2 . . . . . . . . . . . . 113 Thermal 465 | 7 52 . 178 73 116 . . . . . . . . . 4 . . . 35 Explosive 56 | . 1 2 4 7 2 . . 5 3 . 23 . . 4 2 . 2 1 . Electromagnetic 29 | . . . 10 19 . . . . . . . . . . . . . . . Robot Hit Streak 21 | 4 11 5 17 17 19 . . . . . 20 . . . 21 . 3 . 10 Robot Miss Streak 6 | 1 3 3 4 2 4 . . . . . . . . . 1 . . . 6 Penetration Max 3 | . . . . . . . . . . . . . . . . . . . 3 Secondary Targets 9 | . 1 . 4 . 2 . . . . . . . . . . . . . 2 Max Gunslinging Chain 1 | . 1 . 1 . 1 . . . . . . . . . . . . . 1 Shots Hit Robots 601 | 10 71 16 195 78 93 . . 7 1 . 11 1 2 4 4 7 9 5 87 Core Hits 296 | 4 34 7 72 42 31 . . 4 4 . 23 . . 3 4 6 11 3 48 Critical Kills 11 | . . . 1 . . . . . . . . . . . . . . . 10 Critical Parts Destroyed 26 | . . . . . . . . . . . . . . . . . . . 26 Critical Strikes 66 | . . . 8 3 6 . . . . . 1 . . . . 1 2 . 45 Burn 14 | . . . 6 3 5 . . . . . . . . . . . . . . Destroy 44 | . . . 1 . . . . . . . . . . . . . . . 43 Blast 1 | . . . . . 1 . . . . . . . . . . . . . . Sever 5 | . . . 1 . . . . . . . 1 . . . . 1 . . 2 Impale 2 | . . . . . . . . . . . . . . . . . 2 . . Melee Attacks 427 | . . . 26 18 1 1 . 56 37 . 51 39 2 47 6 32 66 27 18 Impact . | . . . . . . . . . . . . . . . . . . . . Slashing 297 | . . . 26 18 1 1 . 56 37 . 51 39 2 47 6 6 . . 7 Piercing 130 | . . . . . . . . . . . . . . . . 26 66 27 11 Sneak Attacks 32 | . . . 2 4 . . . 4 1 . 6 1 1 3 1 2 2 4 1 Combat Hostiles . | . . . . . . . . . . . . . . . . . . . . Follow-up Attacks 1 | . . . . . . . . . . . . . . . . 1 . . . Damage Inflicted 17224 | 120 966 288 3510 2316 2007 . . 439 279 . 1396 97 159 360 270 352 1350 635 2680 Guns 8065 | 120 880 188 2245 853 1546 . . . . . . . . . 59 . . . 2174 Cannons 609 | . . . 114 123 148 . . . . . . . . . . . . . 224 Explosions 3508 | . 86 100 404 841 313 . . . 202 . 815 . . . 161 . 586 . . Melee 5042 | . . . 747 499 . . . 439 77 . 581 97 159 360 50 352 764 635 282 Ramming . | . . . . . . . . . . . . . . . . . . . . Kinetic 3567 | 63 474 188 339 . 148 . . . . . . . . . . . . . 2355 Thermal 4776 | 57 406 . 1951 714 1546 . . . . . . . . . 59 . . . 43 Explosive 3244 | . 86 100 313 668 313 . . . 202 . 815 . . . 161 . 586 . . Electromagnetic 595 | . . . 160 435 . . . . . . . . . . . . . . . Impact . | . . . . . . . . . . . . . . . . . . . . Slashing 3194 | . . . 747 499 . . . 439 77 . 581 97 159 360 50 114 . . 71 Piercing 1848 | . . . . . . . . . . . . . . . . 238 764 635 211 Highest Corruption 11 | . . . . . . . 3 1 1 2 7 . 7 7 . . 3 . 11 Average Corruption 3 | . . . . . . . 3 1 1 2 2 . 7 4 . . 2 . 4 Corruption Purged 12 | . . . . . . . . . . . 2 . . 7 . . 3 . . Corruption Blocked . | . . . . . . . . . . . . . . . . . . . . Effects 66 | . . . . . . . . . 2 4 10 . . 9 . . 9 . 32 Message Errors 14 | . . . . . . . . . . 1 1 . . 3 . . 1 . 8 Matter Fused 14 | . . . . . . . . . . 1 4 . . 1 . . 4 . 4 Heat Flow Errors 6 | . . . . . . . . . 1 . . . . 1 . . . . 4 Energy Discharges 3 | . . . . . . . . . . . 1 . . . . . . . 2 Parts Rejected 3 | . . . . . . . . . . 1 1 . . . . . . . 1 Parts Fused 1 | . . . . . . . . . . 1 . . . . . . . . . Data Loss (minor) 13 | . . . . . . . . . 1 . 1 . . 2 . . 3 . 6 Data Loss (major) 4 | . . . . . . . . . . . 1 . . 2 . . . . 1 Misfires 1 | . . . . . . . . . . . 1 . . . . . . . . Alerts 1 | . . . . . . . . . . . . . . . . . 1 . . Misdirections 2 | . . . . . . . . . . . . . . . . . . . 2 Weapon Failures 4 | . . . . . . . . . . . . . . . . . . . 4 Overload Shots . | . . . . . . . . . . . . . . . . . . . . Overflow Damage 1165 | . . 4 25 67 8 . . 62 . . 84 57 . 105 48 6 531 168 . Projectiles . | . . . . . . . . . . . . . . . . . . . . Explosions 211 | . . 4 . 24 8 . . . . . 8 . . . 48 . 119 . . Melee 954 | . . . 25 43 . . . 62 . . 76 57 . 105 . 6 412 168 . Knockbacks 3 | . . . . . 3 . . . . . . . . . . . . . . Impact . | . . . . . . . . . . . . . . . . . . . . Kinetic 3 | . . . . . 3 . . . . . . . . . . . . . . Secondary . | . . . . . . . . . . . . . . . . . . . . Self-Inflicted Damage 430 | . . . 7 . . . . . . . 228 . . . 115 . . 80 . Shots 10 | . . . 1 . . . . . . . 6 . . . 2 . . 1 . Rammed . | . . . . . . . . . . . . . . . . . . . . Targets Rammed . | . . . . . . . . . . . . . . . . . . . . Kicked . | . . . . . . . . . . . . . . . . . . . . Crushed . | . . . . . . . . . . . . . . . . . . . . Highest Temperature 369 | . 117 . 369 171 345 . . 10 178 . 12 . . 217 74 5 219 1 200 Average Temperature 47 | . 24 . 79 41 126 . . 2 45 . 6 . . 104 34 3 26 1 73 Received Heat Transfer 2916 | . 282 . 837 324 783 . . . 27 . 72 . . 96 30 72 . . 393 Effects 11 | . . . 6 . 3 . . . . . . . . . . . . . 2 Energy Bleed 3 | . . . 3 . . . . . . . . . . . . . . . . Interference 8 | . . . 3 . 3 . . . . . . . . . . . . . 2 Siege Activations . | . . . . . . . . . . . . . . . . . . . . Martial Activations . | . . . . . . . . . . . . . . . . . . . . Shielding Activations . | . . . . . . . . . . . . . . . . . . . . Robots Disrupted . | . . . . . . . . . . . . . . . . . . . . Combat Hostiles . | . . . . . . . . . . . . . . . . . . . . Robots Corrupted 1 | . . . . 1 . . . . . . . . . . . . . . . Combat Hostiles 1 | . . . . 1 . . . . . . . . . . . . . . . Parts Fried 5 | . . . . 5 . . . . . . . . . . . . . . . Impact Corruptions . | . . . . . . . . . . . . . . . . . . . . Robots Melted 3 | . . . 2 . 1 . . . . . . . . . . . . . . Combat Hostiles 3 | . . . 2 . 1 . . . . . . . . . . . . . . Parts Melted 27 | . 1 . 16 3 6 . . . . . . . . . . . . . 1 Heat Transferred 11891 | 125 910 . 5108 1924 3700 . . . . . . . . . 74 . . . 50 Parts Sabotaged . | . . . . . . . . . . . . . . . . . . . . Parts Stolen . | . . . . . . . . . . . . . . . . . . . . Parts Stripped . | . . . . . . . . . . . . . . . . . . . . Power Chain Reactions 2 | . . . 2 . . . . . . . . . . . . . . . . Alert | -11 -10 -10 -9 -8 -8 -8 -8 -6 -5 -5 -5 -4 -4 -4 -3 -3 -2 -2 -2 ------- Run | Yrd Mat Min Mat Mat Sto Rec Scr Fac Fac Was Fac Fac Was Fac Res Tes Res Qua Frg Maximum Alert Level 3 | . . . 1 1 . . . . 1 . 2 . . . . 1 3 2 3 Low Security (%) 78 | 100 100 100 90 78 100 100 . 100 88 100 77 100 100 100 100 91 10 . . Level 1 8 | . . . 9 21 . . . . 11 . 20 . . . . 8 . 2 32 Level 2 10 | . . . . . . . . . . . 2 . . . . . 88 97 38 Level 3 2 | . . . . . . . . . . . . . . . . . . . 29 Level 4 . | . . . . . . . . . . . . . . . . . . . . Level 5 . | . . . . . . . . . . . . . . . . . . . . High Security . | . . . . . . . . . . . . . . . . . . . . Max Security . | . . . . . . . . . . . . . . . . . . . . Peak Influence 829 | 10 78 77 220 259 169 33 . 31 340 156 471 153 24 85 76 244 700 516 829 Initial 393 | . 3 . . 87 63 . . . 7 116 26 105 24 9 . 15 137 393 284 Average 135 | 1 20 11 72 168 31 5 . 8 61 104 113 68 20 27 13 74 523 451 547 Influence Increases 8863 | 15 333 147 950 631 478 154 . 248 614 72 1393 228 . 370 175 443 953 273 1386 Destroy 0b10 Robot/C 2660 | . 180 120 580 280 320 . . . 40 . 340 . . 20 40 60 140 . 540 Destroy 0b10 Robot/NC 390 | 15 20 . 75 55 15 . . 20 10 . 50 5 . 20 10 10 25 25 35 Destroy Leader 620 | . 44 20 182 86 70 . . 4 2 . 76 . . 2 . 12 34 2 86 Allied During Kill 208 | . . . . . . . . . . . 189 . . 2 . . . . 17 Successful Hack 699 | . 56 . 17 . 21 32 . 58 83 . 110 59 . 21 . 70 85 57 30 Select Force Hacks 120 | . . . . . . 120 . . . . . . . . . . . . . Disable Machine 525 | . . . 15 15 15 . . 60 45 . 90 . . 45 15 45 30 90 60 Destroy Structure 1586 | . 3 7 36 30 22 2 . 76 104 72 328 74 . 110 50 36 399 99 138 Partial Spotted 345 | . . . . . 15 . . 15 15 . 120 . . 45 . 15 90 . 30 Lose Combat Pursuer 1710 | . 30 . 45 165 . . . 15 315 . 90 90 . 105 60 195 150 . 450 Influence Decreases 8232 | 10 338 147 742 687 630 154 . 233 297 366 1214 374 57 384 146 228 497 467 1261 Entered New Map 1262 | . 2 . . 121 89 . . . 8 216 12 112 47 5 . 14 107 307 222 Time Decay 4997 | 10 316 127 562 486 392 154 . 233 259 150 375 262 10 302 76 184 380 160 559 Lost Part 927 | . 20 20 180 80 50 . . . 30 . 50 . . 37 70 20 10 . 360 Lost Ally 559 | . . . . . 99 . . . . . 290 . . 40 . 10 . . 120 Purge Threat 487 | . . . . . . . . . . . 487 . . . . . . . . Squads Dispatched 83 | . 2 . 4 3 1 . . 10 8 . 15 6 . 5 2 7 8 2 10 Investigation 37 | . . . 1 . 1 . . 7 6 . 10 3 . 1 . 1 3 . 4 Extermination 20 | . . . . . . . . 3 2 . 3 2 . 3 . 1 3 1 2 Reinforcement 25 | . 2 . 3 3 . . . . . . 2 1 . 1 2 4 2 1 4 Assault 1 | . . . . . . . . . . . . . . . . 1 . . . Garrison . | . . . . . . . . . . . . . . . . . . . . Intercept . | . . . . . . . . . . . . . . . . . . . . Searches Triggered . | . . . . . . . . . . . . . . . . . . . . Construction Impeded 1 | . . . . . . . . . . . 1 . . . . . . . . Haulers Reinforced . | . . . . . . . . . . . . . . . . . . . . Active Scanning Responses . | . . . . . . . . . . . . . . . . . . . . Cargo Convoy Interrupts . | . . . . . . . . . . . . . . . . . . . . Stealth | -11 -10 -10 -9 -8 -8 -8 -8 -6 -5 -5 -5 -4 -4 -4 -3 -3 -2 -2 -2 --------- Run | Yrd Mat Min Mat Mat Sto Rec Scr Fac Fac Was Fac Fac Was Fac Res Tes Res Qua Frg Distress Signals 35 | . 2 . 4 4 3 . . 1 . . 5 3 . 2 1 3 1 . 6 Communications Jammed 16 | . . . . . . . . . . . . . . 16 . . . . . Distress Signals 11 | . . . . . . . . . . . . . . 11 . . . . . Times Spotted 483 | . 25 5 48 36 19 . . 5 42 3 29 16 6 34 14 27 27 2 145 Peak Tracking Total 25 | . 3 3 5 7 4 . . 4 13 2 12 8 5 14 6 8 8 6 25 Tactical Retreats 65 | . 2 . 2 7 . . . 5 10 . 5 4 . 4 3 6 5 . 12 Traps | -11 -10 -10 -9 -8 -8 -8 -8 -6 -5 -5 -5 -4 -4 -4 -3 -3 -2 -2 -2 ------- Run | Yrd Mat Min Mat Mat Sto Rec Scr Fac Fac Was Fac Fac Was Fac Res Tes Res Qua Frg Traps Triggered 23 | . 1 . 1 . 1 . . 1 4 . 4 3 . 3 1 . 3 . 1 Indirectly . | . . . . . . . . . . . . . . . . . . . . Trap Hack Attempts . | . . . . . . . . . . . . . . . . . . . . Triggered . | . . . . . . . . . . . . . . . . . . . . Disarmed . | . . . . . . . . . . . . . . . . . . . . Reprogrammed . | . . . . . . . . . . . . . . . . . . . . Reused . | . . . . . . . . . . . . . . . . . . . . Traps Extracted . | . . . . . . . . . . . . . . . . . . . . Installed . | . . . . . . . . . . . . . . . . . . . . Triggered . | . . . . . . . . . . . . . . . . . . . . Machines | -11 -10 -10 -9 -8 -8 -8 -8 -6 -5 -5 -5 -4 -4 -4 -3 -3 -2 -2 -2 ---------- Run | Yrd Mat Min Mat Mat Sto Rec Scr Fac Fac Was Fac Fac Was Fac Res Tes Res Qua Frg Machines Disabled 35 | . . . 1 1 1 . . 4 3 . 6 . . 3 1 3 2 6 4 Max in Single Turn 1 | . . . 1 1 1 . . 1 1 . 1 . . 1 1 1 1 1 1 Garrison Access 7 | . . . . 1 . . . 3 1 . 1 . . . . . 1 . . Machines Repaired . | . . . . . . . . . . . . . . . . . . . . Machines Dismantled . | . . . . . . . . . . . . . . . . . . . . Machines Sabotaged . | . . . . . . . . . . . . . . . . . . . . Overloaded Fab Kills . | . . . . . . . . . . . . . . . . . . . . Hacking | -11 -10 -10 -9 -8 -8 -8 -8 -6 -5 -5 -5 -4 -4 -4 -3 -3 -2 -2 -2 --------- Run | Yrd Mat Min Mat Mat Sto Rec Scr Fac Fac Was Fac Fac Was Fac Res Tes Res Qua Frg Machines Accessed 177 | . 10 . 13 6 8 10 3 25 20 . 29 12 . 3 . 8 10 8 12 Terminals 97 | . 7 . 9 3 7 6 . 10 8 . 14 7 . 2 . 5 5 7 7 Fabricators 12 | . . . . . . . . 3 2 . 4 . . . . 1 1 . 1 Repair Stations 10 | . 1 . 1 . 1 . . 1 2 . 1 1 . . . . 1 . 1 Recycling Units 36 | . 2 . 1 1 . 4 . 7 5 . 7 3 . 1 . . 2 . 3 Scanalyzers 10 | . . . 2 1 . . . 1 1 . 1 1 . . . 2 . 1 . Garrison Access 9 | . . . . 1 . . . 3 2 . 2 . . . . . 1 . . Total Hacks 628 | . 32 . 66 15 21 31 28 81 73 . 114 41 . 15 . 21 33 29 28 Successful 392 | . 18 . 50 9 14 21 28 52 49 . 65 16 . 9 . 13 18 18 12 Failed 235 | . 14 . 16 6 7 10 . 29 24 . 48 25 . 6 . 8 15 11 16 Catastrophic 31 | . 2 . 1 1 2 . . 4 2 . 8 2 . 1 . 2 1 1 4 Database Lockouts 1 | . . . . . . . . . . . 1 . . . . . . . . Manual 326 | . 22 . 28 7 9 13 . 48 39 . 65 21 . 10 . 11 17 18 18 Terminals 382 | . 25 . 27 8 18 21 . 37 44 . 75 29 . 14 . 16 20 27 21 Fabricators 37 | . . . . . . . . 12 8 . 12 . . . . 1 3 . 1 Repair Stations 22 | . 2 . 2 . 3 . . 2 3 . 2 2 . . . . 5 . 1 Recycling Units 83 | . 5 . 4 1 . 10 . 18 11 . 17 8 . 1 . . 3 . 5 Scanalyzers 58 | . . . 33 5 . . . 7 3 . 2 2 . . . 4 . 2 . Garrison Access 18 | . . . . 1 . . . 5 4 . 6 . . . . . 2 . . Terminal Hacks 136 | . 5 . 3 1 8 5 28 9 14 . 28 6 . 6 . 6 6 9 2 Record 35 | . . . 1 . . . 28 . . . 3 . . . . 1 . 2 . Part Schematic 10 | . . . . . . 2 . 1 3 . 1 1 . 1 . . . 1 . Robot Schematic 1 | . . . . . . . . . 1 . . . . . . . . . . Robot Analysis 12 | . 2 . 1 . 1 1 . 3 1 . 3 . . . . . . . . Prototype ID Bank 7 | . 1 . . . 1 2 . 1 1 . . . . . . . . 1 . Open Door 2 | . . . . . 1 . . . . . . . . . . 1 . . . Level Access Points 3 | . . . . . . . . 1 . . 1 . . 1 . . . . . Branch Access Points 2 | . . . . . . . . . 1 . . . . . . . 1 . . Terminal Index 4 | . . . . . . . . 1 1 . . . . 1 . . . 1 . Fabricator Index 1 | . . . . . . . . . . . . . . 1 . . . . . Recycling Unit Index 1 | . . . . . . . . . . . . . . 1 . . . . . Scanalyzer Index 1 | . . . . . . . . . . . 1 . . . . . . . . Garrison Index 1 | . . . . . . . . . . . 1 . . . . . . . . Alert Level 6 | . . . . . 3 . . . . . 2 1 . . . . . . . Unreport Threat 4 | . . . . . . . . . . . 4 . . . . . . . . Locate Traps 12 | . 1 . . 1 1 . . . 2 . 1 2 . . . 1 1 1 1 Security Status 1 | . . . . . . . . . . . 1 . . . . . . . . Transport Status 1 | . . . . . . . . . . . 1 . . . . . . . . Recall Investigation 7 | . . . . . . . . . . . 3 2 . . . . 2 . . Recall Extermination 4 | . . . . . . . . 1 . . 1 . . . . . 2 . . Recall Reinforcements 1 | . . . . . . . . . . . . . . . . . . 1 . Hauler Manifests 7 | . 1 . 1 . 1 . . 1 2 . 1 . . . . . . . . Registered Components 3 | . . . . . . . . . 1 . 1 . . . . 1 . . . Registered Prototypes 2 | . . . . . . . . . . . 2 . . . . . . . . Zone Layout 7 | . . . . . . . . . 1 . 1 . . 1 . 1 . 2 1 Protovariant Controls 1 | . . . . . . . . . . . . . . . . 1 . . . Fabricator Hacks 10 | . . . . . . . . 3 3 . 2 . . . . . 1 . 1 Network Status 8 | . . . . . . . . 1 3 . 2 . . . . . 1 . 1 Load Schematic 1 | . . . . . . . . 1 . . . . . . . . . . . Build 1 | . . . . . . . . 1 . . . . . . . . . . . Repair Station Hacks 15 | . 2 . . . 2 . . 2 2 . 2 . . . . . 4 . 1 Scan Component 7 | . 1 . . . 1 . . 1 1 . 1 . . . . . 2 . . Repair 7 | . 1 . . . 1 . . 1 1 . 1 . . . . . 2 . . Refit 1 | . . . . . . . . . . . . . . . . . . . 1 Recycling Unit Hacks 25 | . 2 . 1 . . 4 . 6 5 . 5 2 . . . . . . . Retrieve Matter 2 | . . . . . . . . 1 . . . 1 . . . . . . . Retrieve Components 23 | . 2 . 1 . . 4 . 5 5 . 5 1 . . . . . . . Scanalyzer 52 | . . . 32 4 . . . 7 3 . 2 . . . . 2 . 2 . Insert Component 26 | . . . 15 2 . . . 4 1 . 1 . . . . 2 . 1 . Analyze 26 | . . . 17 2 . . . 3 2 . 1 . . . . . . 1 . Garrison Access Hacks 7 | . . . . 1 . . . 3 1 . 1 . . . . . 1 . . Seal Access 7 | . . . . 1 . . . 3 1 . 1 . . . . . 1 . . Unauthorized Hacks 147 | . 9 . 14 3 4 12 . 22 21 . 25 8 . 3 . 5 6 7 8 Terminals 101 | . 6 . 12 3 4 8 . 11 13 . 16 5 . 2 . 5 4 7 5 Assimilate 8 | . 1 . . . . . . . 2 . 3 . . . . 1 . 1 . Botnet 61 | . 5 . 5 2 4 5 . 6 6 . 8 3 . 2 . 3 4 5 3 Disrupt 3 | . . . . . . . . . . . . . . . . 1 . . 2 Skim 29 | . . . 7 1 . 3 . 5 5 . 5 2 . . . . . 1 . Fabricators 10 | . . . . . . . . 4 3 . 3 . . . . . . . . Report 1 | . . . . . . . . 1 . . . . . . . . . . . Liberate 5 | . . . . . . . . 2 2 . 1 . . . . . . . . Haulers 4 | . . . . . . . . 1 1 . 2 . . . . . . . . Repair Stations . | . . . . . . . . . . . . . . . . . . . . Recycling Units 36 | . 3 . 2 . . 4 . 7 5 . 6 3 . 1 . . 2 . 3 Reject 3 | . 2 . 1 . . . . . . . . . . . . . . . . Recyclers 2 | . 1 . 1 . . . . . . . . . . . . . . . . Tunnel 4 | . . . . . . 4 . . . . . . . . . . . . . Fedlink 24 | . . . . . . . . 7 5 . 6 3 . . . . 2 . 1 Scrapoids 2 | . . . . . . . . . . . . . . 1 . . . . 1 Scraphulk 1 | . . . . . . . . . . . . . . . . . . . 1 Scanalyzers . | . . . . . . . . . . . . . . . . . . . . Garrison Access . | . . . . . . . . . . . . . . . . . . . . Data Cores Recovered 2 | . . . 1 . . . . . 1 . . . . . . . . . . Used 1 | . . . . . . . . . 1 . . . . . . . . . . Hacking Detections 137 | . 8 . 13 5 6 7 . 18 12 . 22 10 . 2 . 7 9 8 10 Full Trace Events 5 | . . . . . . . . . 1 . 2 . . . . 1 . . 1 Feedback Events . | . . . . . . . . . . . . . . . . . . . . Feedback Blocked . | . . . . . . . . . . . . . . . . . . . . Robot Schematics Acquired 4 | . . . . . . . . . 1 . . . . . . 3 . . . Robots Built . | . . . . . . . . . . . . . . . . . . . . Authchips . | . . . . . . . . . . . . . . . . . . . . Time . | . . . . . . . . . . . . . . . . . . . . Total Robot Build Rating . | . . . . . . . . . . . . . . . . . . . . Part Schematics Acquired 40 | . . . 15 2 . 2 . 4 4 . 2 1 . 1 . 7 . 2 . Parts Built 1 | . . . . . . . . 1 . . . . . . . . . . . Authchips 1 | . . . . . . . . 1 . . . . . . . . . . . Time 38 | . . . . . . . . 38 . . . . . . . . . . . Total Part Build Rating 3 | . . . . . . . . 3 . . . . . . . . . . . Parts Repaired 7 | . 1 . . . 1 . . 1 1 . 1 . . . . . 2 . . Time 283 | . 26 . . . 38 . . 16 50 . 56 . . . . . 97 . . Parts Recycled . | . . . . . . . . . . . . . . . . . . . . Recycled Matter . | . . . . . . . . . . . . . . . . . . . . Retrieved Matter . | . . . . . . . . . . . . . . . . . . . . Retrieved Components 55 | . 9 . 10 . . 12 . 9 5 . 7 3 . . . . . . . Parts Scanalyzed 23 | . . . 15 2 . . . 3 1 . 1 . . . . . . 1 . Part Schematics Acquired 23 | . . . 15 2 . . . 3 1 . 1 . . . . . . 1 . Parts Damaged 1 | . . . 1 . . . . . . . . . . . . . . . . Bothacking | -11 -10 -10 -9 -8 -8 -8 -8 -6 -5 -5 -5 -4 -4 -4 -3 -3 -2 -2 -2 ------------ Run | Yrd Mat Min Mat Mat Sto Rec Scr Fac Fac Was Fac Fac Was Fac Res Tes Res Qua Frg Used RIF Installer . | . . . . . . . . . . . . . . . . . . . . Robots Hacked . | . . . . . . . . . . . . . . . . . . . . Non-combat . | . . . . . . . . . . . . . . . . . . . . Combat . | . . . . . . . . . . . . . . . . . . . . Robot Hacks Applied . | . . . . . . . . . . . . . . . . . . . . Relay Couplers Released 4 | . . . . . . . . . . . . . . . . . 4 . . Programmers 4 | . . . . . . . . . . . . . . . . . 4 . . Fabnet Peak Effective % . | . . . . . . . . . . . . . . . . . . . . Robots Rewired . | . . . . . . . . . . . . . . . . . . . . Allies Hacked 1 | . . . . . . . . . . . 1 . . . . . . . . Hacks Repelled . | . . . . . . . . . . . . . . . . . . . . Allies | -11 -10 -10 -9 -8 -8 -8 -8 -6 -5 -5 -5 -4 -4 -4 -3 -3 -2 -2 -2 -------- Run | Yrd Mat Min Mat Mat Sto Rec Scr Fac Fac Was Fac Fac Was Fac Res Tes Res Qua Frg Total Allies 36 | . . . . . . . . . 1 19 3 . . 5 . 1 . 1 6 Largest Group 19 | . . . . . . . . . 1 19 14 . . 5 . 1 . 1 6 Highest-Rated Group 684 | . . . . . . . . . 10 684 547 . . 235 . 10 . 45 462 Highest-Rated Ally 139 | . . . . . . . . . 10 50 50 . . 47 . 10 . 45 139 Total Orders 5 | . . . . . 1 . . . 2 . . . . . . . . . 2 STAY 2 | . . . . . . . . . 1 . . . . . . . . . 1 FOLLOW 1 | . . . . . . . . . 1 . . . . . . . . . . GUARD 1 | . . . . . . . . . . . . . . . . . . . 1 EXPLORE 1 | . . . . . 1 . . . . . . . . . . . . . . Ally Attacks 328 | . . . . . . . . . . 131 97 . . 11 . . . . 89 Total Damage 11040 | . . . . . . . . . . 5148 2499 . . 233 . . . . 3160 Kills 43 | . . . . . . . . . . 10 14 . . 2 . . . . 17 Allies Corrupted 2 | . . . . . . . . . . . 1 . . . . . . . 1 Allies Melted 3 | . . . . . . . . . . . 3 . . . . . . . . Intel | -11 -10 -10 -9 -8 -8 -8 -8 -6 -5 -5 -5 -4 -4 -4 -3 -3 -2 -2 -2 ------- Run | Yrd Mat Min Mat Mat Sto Rec Scr Fac Fac Was Fac Fac Was Fac Res Tes Res Qua Frg Active Infowar (turns) 15375 | 10 460 746 1099 601 736 1240 2321 931 708 301 1114 566 30 905 440 412 769 335 1651 Optics 2535 | . . . . . . . . . 56 . . . . . . . 493 335 1651 Sensors 10620 | . . . . . 721 1240 1430 931 652 301 1114 566 30 905 440 412 667 335 876 IFF 241 | . . . . . . . . . . . . . . . . . . . 241 Terrain 2653 | . . . 319 . . 452 891 . . . . 461 30 42 354 . 104 . . Structural 4 | . . . . . 4 . . . . . . . . . . . . . . Seismic 2927 | 10 460 746 1099 601 11 . . . . . . . . . . . . . . Machine Analysis 1021 | . . . . . . . . . . . . . . . . . 49 335 637 Jamming 212 | . . . . . . . . . 51 . . . . 161 . . . . . ECM 946 | . . . . . . . . 164 74 . 582 103 . 23 . . . . . Robot Analysis Total 12 | . 2 . 1 . 1 1 . 3 1 . 3 . . . . . . . . Derelict Logs Recovered 1 | . . 1 . . . . . . . . . . . . . . . . . Drone Launches 14 | . . . . . 14 . . . . . . . . . . . . . . Drone Recoveries 2 | . . . . . 2 . . . . . . . . . . . . . . Exploration | -11 -10 -10 -9 -8 -8 -8 -8 -6 -5 -5 -5 -4 -4 -4 -3 -3 -2 -2 -2 ------------- Run | Yrd Mat Min Mat Mat Sto Rec Scr Fac Fac Was Fac Fac Was Fac Res Tes Res Qua Frg Turns Passed 20068 | 78 1183 917 2320 1263 1713 1240 3029 931 720 301 1114 566 30 905 468 412 892 335 1651 Spaces Moved 23339 | 51 782 711 1315 652 483 476 2085 2005 1727 348 2392 1360 96 1486 619 961 2517 894 2379 Core 185 | 1 . . . 4 . . 179 . . . . . . . . . 1 . . Treads 1766 | . . . . . 330 426 898 . . . . . . . . . . . 112 Legs . | . . . . . . . . . . . . . . . . . . . . Wheels 4498 | 50 782 711 1315 648 153 50 269 . . . . . . . . . . . 520 Hover 264 | . . . . . . . . . . . . . . . 264 . . . . Flight 16626 | . . . . . . . 739 2005 1727 348 2392 1360 96 1486 355 961 2516 894 1747 Fastest Speed 14 | 50 80 120 101 110 130 215 28 25 22 25 22 26 26 26 30 17 14 14 19 Average Speed 60 | 79 104 120 121 133 212 240 139 25 23 25 32 26 26 27 54 26 16 21 44 Slowest Speed 1550 | 80 135 120 140 1550 325 245 1500 26 25 26 96 28 26 99 102 30 850 23 180 Overloaded Moves 268 | . . . . . . . . . . . 95 . . . . 17 4 93 59 Propulsion Burnouts . | . . . . . . . . . . . . . . . . . . . . Robots Hopped 128 | . . . . . . . . 1 19 . 20 4 . 15 9 9 10 4 37 Potential Cave-ins 6 | . . . . . . . . . . . 2 . . . . . . . 4 Cave-ins Triggered . | . . . . . . . . . . . . . . . . . . . . Exploration Rate (%) 58 | 4 95 99 73 45 76 83 92 47 41 96 60 27 75 20 8 67 37 73 48 Regions Visited 19 Branch Regions 7 Pre-discovered Areas 18 | . . 2 2 . . 4 5 2 1 . 2 . . . . . . . . Known Exits Taken 11 | . . . 1 1 1 . 1 1 . . 1 . . 1 1 1 1 1 . Unknown Exits Taken 4 | 1 1 1 . . . 1 . . . . . . . . . . . . . Scrap Searched 3 | . . 1 . . . . 2 . . . . . . . . . . . . Spaces Dug 475 | . . . 2 4 1 1 . 62 40 . 110 37 . 62 12 18 53 47 26 Terrain Destroyed 899 | . 2 8 31 24 23 3 . 91 55 . 238 37 . 86 34 18 147 47 55 Melee 293 | . . . 2 4 1 1 . 43 32 . 36 37 . 41 . 18 53 16 9 Projectile 49 | . . . . . 1 2 . . . . . . . . . . . . 46 AOE 557 | . 2 8 29 20 21 . . 48 23 . 202 . . 45 34 . 94 31 . Terrain Rammed . | . . . . . . . . . . . . . . . . . . . . Walls Destroyed . | . . . . . . . . . . . . . . . . . . . . Machines Disabled . | . . . . . . . . . . . . . . . . . . . . Actions | -11 -10 -10 -9 -8 -8 -8 -8 -6 -5 -5 -5 -4 -4 -4 -3 -3 -2 -2 -2 --------- Run | Yrd Mat Min Mat Mat Sto Rec Scr Fac Fac Was Fac Fac Was Fac Res Tes Res Qua Frg Total 27730 | 70 1044 747 1758 916 1038 572 2244 2347 1964 560 2613 1509 97 1892 721 1050 2842 976 2770 Wait 2301 | . 144 6 152 108 429 67 1 189 150 188 131 58 . 328 76 10 139 32 93 Move 23092 | 50 781 710 1314 651 482 475 2084 2002 1690 347 2354 1352 95 1459 603 942 2497 885 2319 Hop 102 | . . . . . . . . 1 18 . 17 4 . 11 6 9 9 4 23 Pick Up 283 | 6 27 5 49 18 12 8 44 16 11 5 5 9 . 6 3 12 18 4 25 Fast Attach 150 | 7 . . 5 8 5 2 17 3 1 3 2 5 . 4 10 13 28 5 32 Attach 110 | . 2 2 19 5 4 . 1 9 6 2 3 6 . 9 6 7 6 3 20 Detach 75 | . . . . . . . 19 2 . 2 1 3 . 3 4 5 9 1 26 Swap 227 | . 19 5 29 19 22 6 10 18 5 5 17 6 . 6 1 3 18 5 33 Drop 323 | . 17 3 30 18 11 11 68 28 7 8 10 7 . 7 . 18 32 9 39 Fire 500 | 7 54 16 134 71 66 2 . 5 3 . 22 . . 4 6 . 2 1 107 Melee 425 | . . . 26 18 1 1 . 56 37 . 51 39 2 47 6 30 66 27 18 Ram . | . . . . . . . . . . . . . . . . . . . . Kick . | . . . . . . . . . . . . . . . . . . . . Crush . | . . . . . . . . . . . . . . . . . . . . Escape Stasis 116 | . . . . . . . . 18 36 . . 20 . 8 . 1 18 . 15 Rewire . | . . . . . . . . . . . . . . . . . . . . Trap . | . . . . . . . . . . . . . . . . . . . . Miscellaneous 26 | . . . . . 6 . . . . . . . . . . . . . 20 Route ------- -11/Scrapyard -10/Materials (discovered 3 exits: *Mat x2 / [*Min]) -10/Mines (discovered 3 exits: *Mat x2 / [*Sub]) -9/Materials (discovered 4 exits: *Mat x3 / [*Min]) -8/Materials (discovered 2 exits: [*Fac] / *Sto) -8/Storage (discovered 2 exits: [*Fac] / *Rec) -8/Recycling (discovered 2 exits: *Fac / *Scr) -8/Scraptown (discovered 2 exits: *Fac x2) -6/Factory (discovered 6 exits: *Fac x4 / Low x2) -5/Factory (discovered 3 exits: *Fac / Upp x2) -5/Waste -5/Factory (discovered 6 exits: *Fac x4 / *Upp x2) -4/Factory (discovered 7 exits: *Res x4 / *Upp / *Ext / [Arm]) -4/Waste -4/Factory (discovered 6 exits: *Res x4 / *Upp x2) -3/Research (discovered 3 exits: *Res / *Tes x2) -3/Testing -2/Research (discovered 4 exits: *Acc x2 / *Qua x2) -2/Quarantine (discovered 2 exits: *Sec / *Frg) -2/Protoforge History --------- Turn | Location | Event 11 | -11/Scrapyard | Discovered new exit (range 16) 79 | -11/Scrapyard | Entered Materials 318 | -10/Materials | Build established: Mutant 441 | -10/Materials | Repaired Lgt. Armor Plating 450 | -10/Materials | Discovered new exit (range 9) 879 | -10/Materials | Derelicts attacked the area 1123 | -10/Materials | Discovered new exit (range 10) 1199 | -10/Materials | Discovered new exit (range 13) 1262 | -10/Materials | Entered Mines 1263 | -10/Mines | Learned location of Storage (-8) 1275 | -10/Mines | Met a Derelict bent on vengeance 1317 | -10/Mines | Received a Rocket Launcher from a helpful Derelict 1512 | -10/Mines | Found a hidden stash of uninstalled traps 1543 | -10/Mines | Discovered new exit (range 3) 1977 | -10/Mines | Discovered new exit (range 7) 2055 | -10/Mines | Discovered new exit (range 6) 2179 | -10/Mines | Entered Materials 2179 | -9/Materials | Evolved 2 slots: Propulsion x1, Utility x1 2485 | -9/Materials | Discovered new exit (range 9) 2490 | -9/Materials | Build established: Scavenger-Mutant 2599 | -9/Materials | Lost 4 parts (2p1n1w) 2847 | -9/Materials | Core integrity fell below 50% 2869 | -9/Materials | Lost 5 parts (1p2n1u1w) 3069 | -9/Materials | Build established: Mutant 3174 | -9/Materials | Discovered new exit (range 16) 3571 | -9/Materials | Discovered new exit (range 8) 4159 | -9/Materials | Loaded intel: 2 repair station locations 4204 | -9/Materials | Learned 2 Storage zone layouts 4260 | -9/Materials | Identified exit to Materials 4301 | -9/Materials | Core integrity fell below 20% 4314 | -9/Materials | Learned location of Zion (-6) 4499 | -9/Materials | Entered another Materials area 4499 | -8/Materials | Evolved 2 slots: Propulsion x1, Utility x1 4500 | -8/Materials | Identified exit to Storage 4638 | -8/Materials | Build established: Scavenger-Mutant 4688 | -8/Materials | Lost 7 parts (3n2u2w) 5534 | -8/Materials | Discovered new exit (range 16) 5762 | -8/Materials | Entered Storage 5763 | -8/Storage | Identified exit to Recycling 5968 | -8/Storage | Discovered new exit (range 48) 6047 | -8/Storage | Lost 5 allies 6422 | -8/Storage | Core integrity fell below 50% 6458 | -8/Storage | Lost 4 parts (1p2n1u) 6670 | -8/Storage | Repaired Arm. Treads 7097 | -8/Storage | Core integrity fell below 20% 7385 | -8/Storage | Build established: Mutant 7465 | -8/Storage | Used back door to open Recycling access 7475 | -8/Storage | Entered Recycling 8023 | -8/Recycling | Build established: Scavenger-Mutant 8240 | -8/Recycling | Discovered new exit (range 16) 8479 | -8/Recycling | Build established: Mutant 8660 | -8/Recycling | Scanned before Scraplab entrance 8693 | -8/Recycling | Entered Scraplab 8713 | -8/Recycling | Discovered new exit (range 2) 8715 | -8/Recycling | Entered Scraptown 9176 | -8/Scraptown | Discovered new exit (range 11) 9323 | -8/Scraptown | Visited Assassins FH 9376 | -8/Scraptown | Visited Shadow of the Wyrm 9722 | -8/Scraptown | Visited Awakened 9783 | -8/Scraptown | Visited Science Testing Area 9902 | -8/Scraptown | Visited CPS Storage 9960 | -8/Scraptown | Visited SPCMW 10023 | -8/Scraptown | Visited UFD Registry 10023 | -8/Scraptown | Registered with UFD as "Quantumrider" 10103 | -8/Scraptown | Visited LU-1G1's Boring Crew 10205 | -8/Scraptown | Visited Botcube Research 10251 | -8/Scraptown | Visited Chapter 10 10292 | -8/Scraptown | Visited Scrap Suit Storage 10348 | -8/Scraptown | Visited Cartography Club 10431 | -8/Scraptown | Visited Derelict Rescue Squad 10465 | -8/Scraptown | Visited Abandonware Association 10491 | -8/Scraptown | Learned abandonware demo "REPAIR.EXE" 10491 | -8/Scraptown | Learned abandonware demo "TRNCOAT.EXE" 10564 | -8/Scraptown | Visited Junk Repository 10634 | -8/Scraptown | Visited Scrapoid Research Area 10673 | -8/Scraptown | Visited Curators Association 10942 | -8/Scraptown | Learned location of Extension (-4) 10942 | -8/Scraptown | Learned location of Cetus (-4) 10942 | -8/Scraptown | Learned location of Archives (-4) 10942 | -8/Scraptown | Learned location of Testing (-3) 10942 | -8/Scraptown | Learned 16 Factory zone layouts 10942 | -8/Scraptown | Learned 24 Factory zone layouts 10942 | -8/Scraptown | Learned 12 Research zone layouts 10942 | -8/Scraptown | Learned 8 Access zone layouts 10942 | -8/Scraptown | Learned 4 Storage zone layouts 10942 | -8/Scraptown | Learned 20 Lower Caves zone layouts 10942 | -8/Scraptown | Learned 12 Upper Caves zone layouts 10942 | -8/Scraptown | Learned 16 Upper Caves zone layouts 10942 | -8/Scraptown | Learned 8 Proximity Caves zone layouts 10942 | -8/Scraptown | Learned location of 2 exits from Research 10942 | -8/Scraptown | Learned location of 2 exits from Upper Caves 10942 | -8/Scraptown | Identified exit to Factory 10947 | -8/Scraptown | Found Deep Structural Scanner 10983 | -8/Scraptown | Found Surveybot 17 Chip 11192 | -8/Scraptown | System corruption cleaned by C-Scrubber 11505 | -8/Scraptown | Found DRS Beacon 11671 | -8/Scraptown | Met Optimus 11671 | -8/Scraptown | Accepted into 0bPrime 11744 | -8/Scraptown | Entered Factory 11744 | -6/Factory | Evolved 4 slots: Propulsion x1, Utility x3 11745 | -6/Factory | Identified exit to Factory 11746 | -6/Factory | Identified exit to Lower Caves 11830 | -6/Factory | Fabricated Imp. VTOL Module (x1) 11919 | -6/Factory | Loaded intel: 8 recycling unit locations 12017 | -6/Factory | Learned location of Protoforge (-2) 12082 | -6/Factory | Build established: Hacker-Sprinter 12343 | -6/Factory | Repaired Mni. Grenade Launcher 12675 | -6/Factory | Entered another Factory area 12675 | -5/Factory | Evolved 2 slots: Propulsion x1, Utility x1 12684 | -5/Factory | Loaded intel: 8 recycling unit locations 12823 | -5/Factory | Identified exit to Upper Caves 12832 | -5/Factory | Spotted B-75 Beast 12932 | -5/Factory | Repaired Nuclear Pulse Thruster 13188 | -5/Factory | Learned Armory emergency access door positions 13280 | -5/Factory | Discovered new exit (range 7) 13281 | -5/Factory | Identified exit to Factory 13293 | -5/Factory | Learned Testing security intel 13329 | -5/Factory | Learned Extension stockpile data 13366 | -5/Factory | Loaded intel: 4 scanalyzer locations 13387 | -5/Factory | Learned location of 1 exit from Upper Caves 13395 | -5/Factory | Manually triggered Chute Trap 13395 | -5/Factory | Sucked down chute 13395 | -5/Factory | Entered Waste 13397 | -5/Waste | Spotted C-40 Crusher 13398 | -5/Waste | Spotted C-40 Crusher 13411 | -5/Waste | Spotted C-40 Crusher 13414 | -5/Waste | Warlord forces began an assault 13444 | -5/Waste | Allies destroyed C-40 Crusher 13458 | -5/Waste | Spotted C-40 Crusher 13460 | -5/Waste | Allies destroyed C-40 Crusher 13464 | -5/Waste | Spotted C-40 Crusher 13465 | -5/Waste | Allies destroyed C-40 Crusher 13466 | -5/Waste | Spotted C-40 Crusher 13469 | -5/Waste | Allies destroyed C-40 Crusher 13475 | -5/Waste | Allies destroyed C-40 Crusher 13479 | -5/Waste | Allies destroyed C-40 Crusher 13508 | -5/Waste | Lost 4 allies 13571 | -5/Waste | Discovered new exit (range 12) 13585 | -5/Waste | Found Broken Heavy Servo Lattice 13627 | -5/Waste | Identified exit to Factory 13696 | -5/Waste | Entered Factory 13696 | -5/Factory | Accompanied by 14 allies 13707 | -5/Factory | Loaded intel: 8 recycling unit locations 13756 | -5/Factory | Spotted B-75 Beast 13810 | -5/Factory | Lost 3 allies 13949 | -5/Factory | Repaired Nuclear Pulse Array 14051 | -5/Factory | Lost 6 allies 14051 | -5/Factory | Central database locked down 14065 | -5/Factory | Discovered exit to Factory (range 15) 14261 | -5/Factory | Discovered exit to Upper Caves (range 13) 14515 | -5/Factory | Learned 2 Proximity Caves zone layouts 14577 | -5/Factory | Learned 8 Testing zone layouts 14629 | -5/Factory | Learned Research stockpile data 14670 | -5/Factory | Learned location of Proximity Caves (-3) 14721 | -5/Factory | Learned Research scanalyzer intel 14810 | -5/Factory | Entered another Factory area 14810 | -4/Factory | Evolved 2 slots: Power x1, Utility x1 14811 | -4/Factory | Identified exit to Research 14811 | -4/Factory | Identified exit to Extension 14827 | -4/Factory | Lost 5 parts (1p4u) 15049 | -4/Factory | Loaded intel: 8 recycling unit locations 15050 | -4/Factory | Discovered exit to Research (range 11) 15060 | -4/Factory | Discovered new exit (range 17) 15188 | -4/Factory | Discovered new exit (range 16) 15376 | -4/Factory | Manually triggered Chute Trap 15376 | -4/Factory | Sucked down chute 15376 | -4/Factory | Entered Waste 15384 | -4/Waste | Spotted C-40 Crusher 15387 | -4/Waste | Spotted C-40 Crusher 15391 | -4/Waste | EMP discharged 15397 | -4/Waste | Spotted C-40 Crusher 15397 | -4/Waste | Spotted C-40 Crusher 15398 | -4/Waste | Spotted C-40 Crusher 15398 | -4/Waste | Discovered new exit (range 14) 15406 | -4/Waste | Identified exit to Factory 15406 | -4/Waste | Entered Factory 16154 | -4/Factory | Discovered new exit (range 14) 16172 | -4/Factory | Scrapoid reinforcements arrived 16180 | -4/Factory | Identified exit to Upper Caves 16210 | -4/Factory | Lost 5 parts (3n1u1w) 16229 | -4/Factory | Lost 11 allies 16273 | -4/Factory | Discovered exit to Upper Caves (range 12) 16311 | -4/Factory | Core integrity fell below 50% 16311 | -4/Factory | Entered Research 16311 | -3/Research | Evolved 2 slots: Utility x2 16312 | -3/Research | Identified exit to Research 16312 | -3/Research | Identified exit to Testing 16315 | -3/Research | Loaded intel: 6 scanalyzer locations 16336 | -3/Research | Lost 5 parts (1p2n1u1w) 16736 | -3/Research | Lost 9 parts (1p1n5u2w) 16737 | -3/Research | Found Fusion Bomb Launcher 16776 | -3/Research | Discovered exit to Testing (range 7) 16779 | -3/Research | Entered Testing 16783 | -3/Testing | Found Prototype Device 16783 | -3/Testing | Identified Exp. Thermal Shield 16927 | -3/Testing | Protovariant out of control (PH-SE1KR5UC7H) 16927 | -3/Testing | Unleashed a protovariant (PH-SE1KR5UC7H) 16963 | -3/Testing | Discovered exit to Research (range 15) 16984 | -3/Testing | Found Prototype Ballistic Gun 17009 | -3/Testing | Identified Hyp. Multirail 17084 | -3/Testing | Build established: Sprinter 17156 | -3/Testing | Found Prototype Launcher 17156 | -3/Testing | Identified Tactical Quantum Warhead 17161 | -3/Testing | Scanned by Researcher 17191 | -3/Testing | Entered Research 17191 | -2/Research | Evolved 2 slots: Propulsion x1, Utility x1 17192 | -2/Research | Identified exit to Access 17269 | -2/Research | Loaded intel: 5 recycling unit locations 17345 | -2/Research | Found Prototype Device 17345 | -2/Research | Identified Exp. Actuator Array 17353 | -2/Research | Spotted B-90 Cyclops 17367 | -2/Research | Repaired Exp. Thermal Shield? 17436 | -2/Research | Found Adv. Powered Armor 17438 | -2/Research | Discovered new exit (range 16) 17466 | -2/Research | Identified exit to Quarantine 17494 | -2/Research | Found Hvy. Reactive Plating 17559 | -2/Research | Build established: Hacker-Sprinter 17590 | -2/Research | Found Prototype Processor 17590 | -2/Research | Identified Spectral Analyzer 17619 | -2/Research | Spotted B-90 Cyclops 17702 | -2/Research | Found Prototype Hackware 17702 | -2/Research | Identified Exp. System Shield 17788 | -2/Research | Found Prototype Launcher 17788 | -2/Research | Identified Gui. Micro-nuke Launcher 17863 | -2/Research | Build established: Hacker-Scout 17884 | -2/Research | Repaired Broken Imp. Phase Shifter 18083 | -2/Research | Entered Quarantine 18111 | -2/Quarantine | Found Fusion Bomb Launcher 18245 | -2/Quarantine | Cryocooling Duct disabled 18260 | -2/Quarantine | Ambient heat levels rising (+20) 18260 | -2/Quarantine | Non-combat units ordered to evacuate 18291 | -2/Quarantine | Found Alien Artifact 18291 | -2/Quarantine | Identified Phase Redirector 18372 | -2/Quarantine | Found Alien Slashing Weapon 18372 | -2/Quarantine | Identified Sigix Broadsword 18401 | -2/Quarantine | Spotted Fortress 18416 | -2/Quarantine | Discovered new exit (range 6) 18416 | -2/Quarantine | Discovered new exit (range 7) 18417 | -2/Quarantine | Identified exit to Section 7 18418 | -2/Quarantine | Identified exit to Protoforge 18418 | -2/Quarantine | Entered Protoforge 18419 | -2/Protoforge | Superfortress began startup sequence 18608 | -2/Protoforge | Spotted Hotshot 18781 | -2/Protoforge | Spotted AP7-3 18781 | -2/Protoforge | Spotted AP7-3 18785 | -2/Protoforge | Spotted EXE-6 18785 | -2/Protoforge | Spotted EXE-6 18786 | -2/Protoforge | Spotted SKR-2 18787 | -2/Protoforge | Spotted SKR-2 18787 | -2/Protoforge | Spotted SKR-2 18803 | -2/Protoforge | UFD initiated attack on Protoforge 18803 | -2/Protoforge | Loaded intel: 3 recycling unit locations 18812 | -2/Protoforge | Spotted EXE-6 18812 | -2/Protoforge | Spotted EXE-6 18825 | -2/Protoforge | Scrapoids reinforcements arrived? 18829 | -2/Protoforge | Scraphulk reinforcements arrived? 18831 | -2/Protoforge | Found Scrap Suit 18838 | -2/Protoforge | Found Prototype Processor 18838 | -2/Protoforge | Identified Exp. Melee Analysis Suite 18840 | -2/Protoforge | Optimus greeted in Protoforge 18841 | -2/Protoforge | Found Exp. Melee Analysis Suite 18843 | -2/Protoforge | Lost 8 parts (2p4n2u) 18871 | -2/Protoforge | Found UFD Drillbomb 18875 | -2/Protoforge | Lost 12 allies 18943 | -2/Protoforge | Spotted Hotshot 18962 | -2/Protoforge | Installed UFD Drillbomb at designated target 18962 | -2/Protoforge | UFD reported confirmed Drillbomb installation 18967 | -2/Protoforge | Spotted Hotshot 18967 | -2/Protoforge | Spotted Hotshot 19014 | -2/Protoforge | Found Prototype Launcher 19014 | -2/Protoforge | Identified Cep. Concussive Dispersal Blaster 19020 | -2/Protoforge | Found Prototype Slashing Weapon 19020 | -2/Protoforge | Identified Exp. Terror Saw 19022 | -2/Protoforge | Found Exp. Terror Saw 19061 | -2/Protoforge | Found UFD Drillbomb 19080 | -2/Protoforge | Spotted Executioner 19098 | -2/Protoforge | Build established: Scavenger-Mutant 19124 | -2/Protoforge | Spotted Overlord 19156 | -2/Protoforge | Installed UFD Drillbomb at designated target 19156 | -2/Protoforge | UFD reported confirmed Drillbomb installation 19161 | -2/Protoforge | Lost 4 allies 19164 | -2/Protoforge | Spotted Hotshot 19175 | -2/Protoforge | Spotted Decapitator 19177 | -2/Protoforge | Spotted Executioner 19177 | -2/Protoforge | Spotted Executioner 19177 | -2/Protoforge | Spotted Executioner 19177 | -2/Protoforge | Spotted Striker 19192 | -2/Protoforge | Spotted Striker 19193 | -2/Protoforge | Spotted Striker 19242 | -2/Protoforge | Lost 4 allies 19249 | -2/Protoforge | Found Scrap Suit 19386 | -2/Protoforge | Spotted Striker 19571 | -2/Protoforge | Spotted Executioner 19581 | -2/Protoforge | Spotted Striker 19582 | -2/Protoforge | Destroyed Striker 19587 | -2/Protoforge | Spotted Striker 19590 | -2/Protoforge | Spotted Striker 19592 | -2/Protoforge | Destroyed Striker 19598 | -2/Protoforge | Build established: Scavenger-Scrapper 19604 | -2/Protoforge | Destroyed Striker 19632 | -2/Protoforge | Lost 4 allies 19638 | -2/Protoforge | Spotted Executioner 19643 | -2/Protoforge | Destroyed Executioner 19644 | -2/Protoforge | Spotted Executioner 19685 | -2/Protoforge | Spotted Striker 19688 | -2/Protoforge | Spotted Striker 19688 | -2/Protoforge | Spotted Hotshot 19691 | -2/Protoforge | Spotted Hotshot 19692 | -2/Protoforge | Spotted Hotshot 19698 | -2/Protoforge | Spotted Executioner 19702 | -2/Protoforge | Spotted Executioner 19724 | -2/Protoforge | Found Prototype Processor 19724 | -2/Protoforge | Identified Exp. Core Analyzer 19736 | -2/Protoforge | Lost 3 parts (2p1u) 19739 | -2/Protoforge | Spotted Striker 19742 | -2/Protoforge | Spotted Executioner 19758 | -2/Protoforge | Spotted Striker 19777 | -2/Protoforge | Spotted Executioner 19798 | -2/Protoforge | Lost 11 allies 19810 | -2/Protoforge | Spotted 02F16-K 19811 | -2/Protoforge | Spotted Executioner 19813 | -2/Protoforge | Spotted Decapitator 19813 | -2/Protoforge | Spotted Decapitator 19813 | -2/Protoforge | Spotted Decapitator 19815 | -2/Protoforge | Spotted Hotshot 19815 | -2/Protoforge | Spotted Hotshot 19815 | -2/Protoforge | Spotted Executioner 19815 | -2/Protoforge | Spotted Hotshot 19819 | -2/Protoforge | Destroyed Decapitator 19822 | -2/Protoforge | Spotted Executioner 19830 | -2/Protoforge | System corruption reached 10% 19844 | -2/Protoforge | Destroyed 02F16-K 19846 | -2/Protoforge | Spotted Hotshot 19847 | -2/Protoforge | P-80 Master assimilated allied 02F92-D 19854 | -2/Protoforge | Spotted Executioner 19867 | -2/Protoforge | Lost 8 parts (2p4n2u) 19868 | -2/Protoforge | Destroyed Executioner 19882 | -2/Protoforge | Spotted Striker 19885 | -2/Protoforge | Spotted Striker 19932 | -2/Protoforge | Lost 11 allies 19959 | -2/Protoforge | Found Corrupted 0bPrime Scrap Suit 20003 | -2/Protoforge | Spotted Executioner 20004 | -2/Protoforge | Spotted Striker 20018 | -2/Protoforge | UFD reported confirmed Drillbomb installation 20027 | -2/Protoforge | Core integrity fell below 50% 20031 | -2/Protoforge | Spotted Executioner 20034 | -2/Protoforge | Spotted Striker 20064 | -2/Protoforge | Core integrity fell below 20% 20069 | -2/Protoforge | Destroyed by H-88 Terminator with KE Penetrator Last Messages --------------- 20061_ HV Slug penetrates Forge Plexus. 20061_ Acquired Centrium Light Armor Plating. 20061_ Penetrated by Slug. 20061_ 0bPrime Scrap Suit destroyed. 20061_ Penetrated by Slug. 20061_ Hvy. Machine Gun destroyed. 20061_ Penetrated by Slug. 20061_ Imp. Deuterium Engine destroyed. 20061_ Penetrated by Slug. 20062_ Slug penetrates 02F02-K. 20064_ Penetrated by Slug. 20065_ HV Slug penetrates Forge Plexus. 20065_ Penetrated by Slug. 20066_ Critical hit (Impale). 20066_ Penetrated by Slug. 20067_ Hvy. Machine Gun destroyed. 20068_ Slug penetrates P-80 Master. 20068_ Slug penetrates B-74 Champion. 20068_ Slug penetrates Machine. 20069_ Penetrated by Slug. Map ----- +----------------------------------------------------+ | =%= """ " #??#####??????? | | "" " = """"" #??"""""#?????? | | "" "" % """" #??"""""#?????? | | """ " % % ###"" F"###???? | | "" ""% " " " #"" ""#???? | | " % %"""%! "" "" "" #" "####? | | " %= *%=[ " "" "# """#? | | " % " =%= # """#? | | " %% " =E " + """#? | | "" %" % "hi E " " + F"#? | | " % % h "" """ # """#? | | " % % [ % h b " """ "# "" ?? | | " " % " " % p % % "# #???? | | "%" " "" %" % % # ##### | | % % " %% "%" %/ " # """ # | | % " "% %% " "" # """"# | | """"""""" % % % " " " + "F""# | | """""""""""" % % %="[ " + ""# | | """"""""""""" %% %% % " " " # """# | | """""""""""""" % " "% "" "# "" # | | """"""""""""""" %""*! "#" "##### | | """""""""""""""" %"%% = % " "#"" ""#???? | | """""""""""""""""% % b%" " "###"F ""###???? | | """"""""""""""""""% % """%% "#?#"""""#?????? | | """""""""""""""""" %%"%=/%"=" " "#?#"""""#?????? | | """""""""""""""""" %""%%K@ %% " "#?#######?????? | | """""""""""""""""""% %"| = % " #?????????????? | | """"""""""""""""""" " "=% "% "" #?????????????? | | """""""""""""""""""%% %% "% #?????????????? | | """""""""""""""""""% %% % SS " #?????????????? | | """""""""""""""""""%% % % !SS #?????????????? | | """""""""""""""""""% ! ##????????????? | | """"""""""""""""""" % s " #????????????? | | """"""""""""""""""" " % %" s "" % #????????????? | | """"""""""""""""""" % "" " ##????????????? | | """""""""""""""""" %"" %% " % #?????????????? | | """""""""""""""""" """% ![ " #?????????????? | | """""""""""""""""" "" """ #?????????????? | | """"""""""""""""" " % " #?????????????? | | """""""""""""""" "" " " "" #?????????????? | | """"""""""""""" " " """" #?????????????? | | """""""""""""" " "=" """ #?????????????? | | """"""""""""" " " " "" #?????????????? | | """""""""""" "" " "" #?????????????? | | """"""""" "" %" #?????????????? | | %% % %"" ""% """ """ #?????????????? | | " % % "" "" """"%#?????????????? | | %%%"% " %" %" ""%"&###???????????? | | % %""" """" %" " """ ""&"&##??????????? | | "" "" """""""""" % "&!#??????????? | +----------------------------------------------------+ Best States ------------- Heat Dissipation 75 Energy Generation 57 Energy Capacity 820 Matter Stores 300 Matter Capacity 300 Sight Range 24 Robot Scan Range 18 Terrain Scan Range 24 Terrain Scan Density 1210 ECM Strength 1 Jamming Range 16 Power Amplification 40 Additional Mass Support 16 EM Shielding 3 Corruption Containment 8 Armor Coverage 225 Resistance: KI 20 Resistance: TH 30 Core Shielding 20 Propulsion Shielding 90 Utility Shielding 66 Phase Shifting 10 Evasion (%) 76 Targeting Accuracy 8 Melee Accuracy 24 Target Analysis 8 Core Analysis 8 Armor Integrity Analysis 40 Recoil Reduction 5 Salvage Targeting 4 Offensive Hacking 26 Defensive Hacking 16 Authchip Count 1 Item Schematics ----------------- Imp. VTOL Module | -9/Materials | Scanalyzed Structural Scanner | -9/Materials | Scanalyzed Plasma Cutter | -9/Materials | Scanalyzed Rocket Launcher | -9/Materials | Scanalyzed ECM Suite | -9/Materials | Scanalyzed Beam Rifle | -9/Materials | Scanalyzed Katana | -9/Materials | Scanalyzed Imp. Flight Unit | -9/Materials | Scanalyzed Lgt. Nuclear Core | -9/Materials | Scanalyzed Hacking Suite | -9/Materials | Scanalyzed Seismic Detector | -9/Materials | Scanalyzed Imp. Terrain Scan Processor | -9/Materials | Scanalyzed Imp. Terrain Scanner | -9/Materials | Scanalyzed Lgt. EM Pulse Cannon | -9/Materials | Scanalyzed Hvy. Assault Rifle | -9/Materials | Scanalyzed Adv. Beam Cannon | -8/Materials | Scanalyzed Melee Analysis Suite | -8/Materials | Scanalyzed Adv. Melee Analysis Suite | -8/Recycling | Hacked Lgt. Fission Core | -8/Recycling | Hacked Field Propulsion Drive | -6/Factory | Hacked Nuclear Pulse Thruster | -6/Factory | Scanalyzed Imp. Utility Shielding | -6/Factory | Scanalyzed Adv. Terrain Scanner | -6/Factory | Scanalyzed Cld. Cesium-ion Thruster | -5/Factory | Scanalyzed Enh. Nuclear Core | -5/Factory | Hacked Imp. Transmission Jammer | -5/Factory | Hacked Imp. Hacking Suite | -5/Factory | Hacked Nuclear Pulse Array | -5/Factory | Scanalyzed Adv. Transmission Jammer | -5/Factory | Hacked Med. Storage Unit | -4/Factory | Hacked Lgt. Particle Reactor | -4/Factory | Hacked Shock Maul | -3/Testing | Archive Enh. Force Rifle | -3/Testing | Archive Exp. Optical Array | -3/Testing | Archive Hvy. Tesla Rifle | -3/Testing | Archive Adv. Plasma Rifle | -3/Testing | Archive Lgt. Neutrino Core | -3/Testing | Archive Adv. Variable Charge Gun | -3/Testing | Archive Enh. Nova Cannon | -2/Quarantine | Hacked Lyr. Medium Armor Plating | -2/Quarantine | Scanalyzed Robot Schematics ------------------ Y-64 Sentinel | -5/Factory | Hacked Y-72 Warden | -3/Testing | Archive X-82 Rainmaker | -3/Testing | Archive C-55 Analyst | -3/Testing | Archive Fabricated ------------ Imp. VTOL Module | x1 | -6/Factory | Authchip Repaired ---------- Lgt. Armor Plating | 26% | -10/Materials Arm. Treads | 37% | -8/Storage Mni. Grenade Launcher | 40% | -6/Factory Nuclear Pulse Thruster | 50% | -5/Factory Nuclear Pulse Array | 55% | -5/Factory Exp. Thermal Shield | 8% | -2/Research Imp. Phase Shifter | 99% | -2/Research | Broken Alien Tech Used ----------------- Phase Redirector Sigix Broadsword Achievements -------------- Rampage Sniper Challenges ------------ None Game ------ Seed LaserSubdwellerTendrils Manual? 0 Play Time 05:27:35 Cumulative 219.3 hours Start 2025.07.17 @ 16:41:58 End 2025.07.17 @ 23:09:01 Sessions 1 Manual Loads 0 Difficulty Rogue Special Mode None Game No. 139 Rogue 135 Adventurer 4 Explorer 0 Win Type - Total 7 Types 6/0/1/0/0/0/0/0/0/0 Lore% 80 Gallery% 71 Achievement% 60 Wizard Run 0 Options --------- Layout 1 ASCII 0 Keyboard 1 Movement Vi Keybinds 1 Fullscreen 2 Font 24/Smallcaps Map View 50x35 Zoom Use 0% Tactical HUD 1 Map Filters NONE Filters NONE Steam 1 RUN: 53b0bf5b-fb4e-46a7-9054-4c85140aa708